[Event "Titled Tuesday Blitz November 07 Early 2023"]
[White "Pendos666"]
[Black "Perdomo, Leandro"]
[BlackFideId "109746"]
[WhiteElo "2836"]
[BlackElo "2677"]
[Result "1/2-1/2"]
[Round "5"]
[TimeControl "180+1"]
[Date "2023.11.07"]
[WhiteClock "0:00:36"]
[BlackClock "0:00:22"]
[Board "38"]

1. e4 {[%clk 0:03:00]}  e5 {[%clk 0:02:59]} 2. Nf3 {[%clk 0:03:00]}  Nc6 {[%clk 0:02:59]} 3. Bb5 {[%clk 0:02:59]}  a6 {[%clk 0:02:59]} 4. Bxc6 {[%clk 0:02:57]}  dxc6 {[%clk 0:03:00]} 5. O-O {[%clk 0:02:57]}  Bg4 {[%clk 0:02:57]} 6. h3 {[%clk 0:02:57]}  Bh5 {[%clk 0:02:57]} 7. g4 {[%clk 0:02:56]}  Bg6 {[%clk 0:02:57]} 8. Nxe5 {[%clk 0:02:56]}  Qh4 {[%clk 0:02:57]} 9. Qf3 {[%clk 0:02:51]}  f6 {[%clk 0:02:57]} 10. Nxg6 {[%clk 0:02:50]}  hxg6 {[%clk 0:02:58]} 11. Kg2 {[%clk 0:02:50]}  O-O-O {[%clk 0:02:58]} 12. d3 {[%clk 0:02:46]}  Bd6 {[%clk 0:02:58]} 13. Nd2 {[%clk 0:02:41]}  g5 {[%clk 0:02:56]} 14. Nc4 {[%clk 0:02:35]}  Ne7 {[%clk 0:02:55]} 15. Nxd6+ {[%clk 0:02:32]}  cxd6 {[%clk 0:02:56]} 16. Rh1 {[%clk 0:02:31]}  Qh7 {[%clk 0:02:53]} 17. Bd2 {[%clk 0:02:26]}  Ng6 {[%clk 0:02:50]} 18. Qg3 {[%clk 0:02:26]}  Qg8 {[%clk 0:02:42]} 19. b3 {[%clk 0:02:22]}  d5 {[%clk 0:02:41]} 20. Rae1 {[%clk 0:02:20]}  Nh4+ {[%clk 0:02:37]} 21. Kh2 {[%clk 0:02:18]}  Qe6 {[%clk 0:02:29]} 22. f4 {[%clk 0:02:08]}  gxf4 {[%clk 0:02:13]} 23. Bxf4 {[%clk 0:02:05]}  g5 {[%clk 0:02:11]} 24. Bc1 {[%clk 0:01:58]}  Rh7 {[%clk 0:01:49]} 25. Rhf1 {[%clk 0:01:55]}  Rdh8 {[%clk 0:01:42]} 26. Bb2 {[%clk 0:01:46]}  Rh6 {[%clk 0:01:24]} 27. exd5 {[%clk 0:01:38]}  Qxd5 {[%clk 0:01:20]} 28. Bxf6 {[%clk 0:01:27]}  Rf8 {[%clk 0:00:52]} 29. Bg7 {[%clk 0:01:02]}  Nf3+ {[%clk 0:00:47]} 30. Rxf3 {[%clk 0:01:01]}  Rxf3 {[%clk 0:00:48]} 31. Re8+ {[%clk 0:00:37]}  Kd7 {[%clk 0:00:48]} 32. Rd8+ {[%clk 0:00:37]}  Kxd8 {[%clk 0:00:44]} 33. Qb8+ {[%clk 0:00:36]}  Ke7 {[%clk 0:00:41]} 34. Qxb7+ {[%clk 0:00:34]}  Qd7 {[%clk 0:00:24]} 35. Qxd7+ {[%clk 0:00:34]}  Kxd7 {[%clk 0:00:25]} 36. Bxh6 {[%clk 0:00:35]}  Rf2+ {[%clk 0:00:24]} 37. Kg3 {[%clk 0:00:35]}  Rxc2 {[%clk 0:00:25]} 38. Bxg5 {[%clk 0:00:36]}  Rxa2 {[%clk 0:00:25]} 39. h4 {[%clk 0:00:36]}  Ra3 {[%clk 0:00:25]} 40. h5 {[%clk 0:00:36]}  Rxb3 {[%clk 0:00:25]} 41. Bf6 {[%clk 0:00:35]}  Rxd3+ {[%clk 0:00:25]} 42. Kf4 {[%clk 0:00:35]}  Ke6 {[%clk 0:00:26]} 43. g5 {[%clk 0:00:35]}  Rd1 {[%clk 0:00:21]} 44. Bc3 {[%clk 0:00:34]}  Rf1+ {[%clk 0:00:20]} 45. Kg4 {[%clk 0:00:34]}  Rg1+ {[%clk 0:00:20]} 46. Kf4 {[%clk 0:00:35]}  Kf7 {[%clk 0:00:20]} 47. g6+ {[%clk 0:00:35]}  Rxg6 {[%clk 0:00:20]} 48. hxg6+ {[%clk 0:00:35]}  Kxg6 {[%clk 0:00:21]} 49. Ke5 {[%clk 0:00:35]}  a5 {[%clk 0:00:21]} 50. Bxa5 {[%clk 0:00:35]}  c5 {[%clk 0:00:22]} 51. Kd5 {[%clk 0:00:35]}  c4 {[%clk 0:00:22]} 52. Kxc4 {[%clk 0:00:36]} 1/2-1/2


[Site "https://www.chess.com"]

[Event "Titled Tuesday Blitz November 07 Early 2023"]
[White "Mgeladze, Tamaz"]
[Black "Mikhailovsky, Vladimir"]
[WhiteFideId "13601202"]
[BlackFideId "34105414"]
[WhiteElo "2673"]
[BlackElo "2831"]
[Result "1/2-1/2"]
[Round "5"]
[TimeControl "180+1"]
[Date "2023.11.07"]
[WhiteClock "0:01:39"]
[BlackClock "0:01:08"]
[Board "40"]

1. c4 {[%clk 0:02:57]}  g6 {[%clk 0:02:55]} 2. Nc3 {[%clk 0:02:57]}  Bg7 {[%clk 0:02:56]} 3. g3 {[%clk 0:02:58]}  c5 {[%clk 0:02:49]} 4. Bg2 {[%clk 0:02:58]}  Nc6 {[%clk 0:02:50]} 5. Nf3 {[%clk 0:02:59]}  b6 {[%clk 0:02:50]} 6. O-O {[%clk 0:02:59]}  Bb7 {[%clk 0:02:51]} 7. b3 {[%clk 0:02:59]}  Nd4 {[%clk 0:02:48]} 8. e3 {[%clk 0:02:48]}  Nxf3+ {[%clk 0:02:47]} 9. Bxf3 {[%clk 0:02:49]}  Qc8 {[%clk 0:02:46]} 10. Bb2 {[%clk 0:02:48]}  Nf6 {[%clk 0:02:46]} 11. Nd5 {[%clk 0:02:47]}  Bc6 {[%clk 0:02:20]} 12. Nxf6+ {[%clk 0:02:38]}  Bxf6 {[%clk 0:02:19]} 13. Bxf6 {[%clk 0:02:37]}  exf6 {[%clk 0:02:20]} 14. d4 {[%clk 0:02:38]}  O-O {[%clk 0:02:14]} 15. dxc5 {[%clk 0:02:31]}  bxc5 {[%clk 0:02:12]} 16. Bd5 {[%clk 0:02:26]}  a5 {[%clk 0:02:08]} 17. Qf3 {[%clk 0:02:22]}  Bxd5 {[%clk 0:02:08]} 18. Qxd5 {[%clk 0:02:23]}  a4 {[%clk 0:02:07]} 19. Rad1 {[%clk 0:02:09]}  Ra7 {[%clk 0:02:00]} 20. bxa4 {[%clk 0:02:08]}  Rxa4 {[%clk 0:01:59]} 21. Qxd7 {[%clk 0:02:05]}  Qxd7 {[%clk 0:01:39]} 22. Rxd7 {[%clk 0:02:06]}  Rxc4 {[%clk 0:01:40]} 23. Rfd1 {[%clk 0:01:50]}  Ra4 {[%clk 0:01:10]} 24. R1d2 {[%clk 0:01:45]}  Rfa8 {[%clk 0:01:10]} 25. Rc7 {[%clk 0:01:39]}  Rxa2 {[%clk 0:01:08]} 1/2-1/2


[Site "https://www.chess.com"]

[Event "Titled Tuesday Blitz November 07 Early 2023"]
[White "Jakubowski, Krzysztof"]
[Black "Bacrot, Etienne"]
[WhiteFideId "1112848"]
[BlackFideId "605506"]
[WhiteElo "2670"]
[BlackElo "2827"]
[Result "1-0"]
[Round "5"]
[TimeControl "180+1"]
[Date "2023.11.07"]
[WhiteClock "0:00:07"]
[BlackClock "0:00:07"]
[Board "42"]

1. e4 {[%clk 0:03:00]}  c5 {[%clk 0:02:58]} 2. Nf3 {[%clk 0:03:00]}  Nc6 {[%clk 0:02:58]} 3. d4 {[%clk 0:02:59]}  cxd4 {[%clk 0:02:58]} 4. Nxd4 {[%clk 0:03:00]}  e5 {[%clk 0:02:59]} 5. Nb5 {[%clk 0:02:59]}  d6 {[%clk 0:02:59]} 6. N1c3 {[%clk 0:02:56]}  a6 {[%clk 0:02:58]} 7. Na3 {[%clk 0:02:56]}  Be6 {[%clk 0:02:58]} 8. Nc4 {[%clk 0:02:54]}  Rc8 {[%clk 0:02:56]} 9. Ne3 {[%clk 0:02:39]}  Be7 {[%clk 0:02:46]} 10. g3 {[%clk 0:02:37]}  Bg5 {[%clk 0:02:43]} 11. Bg2 {[%clk 0:02:34]}  Nf6 {[%clk 0:02:41]} 12. O-O {[%clk 0:02:32]}  O-O {[%clk 0:02:40]} 13. f4 {[%clk 0:02:28]}  exf4 {[%clk 0:02:31]} 14. gxf4 {[%clk 0:02:27]}  Bh6 {[%clk 0:02:32]} 15. a4 {[%clk 0:02:01]}  Re8 {[%clk 0:02:31]} 16. Kh1 {[%clk 0:02:01]}  Nb4 {[%clk 0:02:22]} 17. Bd2 {[%clk 0:01:38]}  Bd7 {[%clk 0:01:54]} 18. Be1 {[%clk 0:01:24]}  Qb6 {[%clk 0:01:48]} 19. Bf2 {[%clk 0:01:22]}  Qa5 {[%clk 0:01:44]} 20. Bh4 {[%clk 0:01:19]}  Kh8 {[%clk 0:00:38]} 21. Bxf6 {[%clk 0:01:06]}  gxf6 {[%clk 0:00:38]} 22. Qxd6 {[%clk 0:00:46]}  Be6 {[%clk 0:00:39]} 23. Qd4 {[%clk 0:00:39]}  Qc5 {[%clk 0:00:34]} 24. Rad1 {[%clk 0:00:30]}  Qxd4 {[%clk 0:00:21]} 25. Rxd4 {[%clk 0:00:30]}  a5 {[%clk 0:00:22]} 26. Rd2 {[%clk 0:00:23]}  Red8 {[%clk 0:00:21]} 27. Ned5 {[%clk 0:00:19]}  Rc4 {[%clk 0:00:16]} 28. Rdf2 {[%clk 0:00:13]}  Nxd5 {[%clk 0:00:12]} 29. exd5 {[%clk 0:00:14]}  Bf5 {[%clk 0:00:12]} 30. Re2 {[%clk 0:00:11]}  Bf8 {[%clk 0:00:10]} 31. Rfe1 {[%clk 0:00:11]}  Kg7 {[%clk 0:00:10]} 32. Be4 {[%clk 0:00:11]}  Bh3 {[%clk 0:00:09]} 33. Rg1+ {[%clk 0:00:10]}  Kh6 {[%clk 0:00:08]} 34. Rg3 {[%clk 0:00:11]}  Bc8 {[%clk 0:00:08]} 35. Reg2 {[%clk 0:00:10]}  Bd6 {[%clk 0:00:07]} 36. Rg7 {[%clk 0:00:07]}  Bxf4 {[%clk 0:00:07]} 37. Rxh7# {[%clk 0:00:07]} 1-0


[Site "https://www.chess.com"]

[Event "Titled Tuesday Blitz November 07 Early 2023"]
[White "Zakhartsov, Vladimir"]
[Black "Degenbaev, Aziz"]
[WhiteFideId "4145097"]
[BlackFideId "13802640"]
[WhiteElo "2823"]
[BlackElo "2671"]
[Result "1-0"]
[Round "5"]
[TimeControl "180+1"]
[Date "2023.11.07"]
[WhiteClock "0:00:31"]
[BlackClock "0:01:09"]
[Board "43"]

1. e4 {[%clk 0:03:00]}  e6 {[%clk 0:03:00]} 2. d4 {[%clk 0:03:00]}  d5 {[%clk 0:03:01]} 3. Nd2 {[%clk 0:03:01]}  Nc6 {[%clk 0:03:01]} 4. Ngf3 {[%clk 0:03:00]}  Nf6 {[%clk 0:03:02]} 5. e5 {[%clk 0:03:00]}  Nd7 {[%clk 0:03:02]} 6. Bb5 {[%clk 0:03:01]}  a6 {[%clk 0:02:43]} 7. Ba4 {[%clk 0:03:00]}  b5 {[%clk 0:02:38]} 8. Bb3 {[%clk 0:03:00]}  f6 {[%clk 0:02:39]} 9. exf6 {[%clk 0:02:55]}  Qxf6 {[%clk 0:02:39]} 10. Nf1 {[%clk 0:02:53]}  Bd6 {[%clk 0:02:35]} 11. c3 {[%clk 0:02:52]}  O-O {[%clk 0:02:34]} 12. Ng3 {[%clk 0:02:48]}  Kh8 {[%clk 0:02:31]} 13. O-O {[%clk 0:02:47]}  Ne7 {[%clk 0:02:26]} 14. Bc2 {[%clk 0:02:38]}  e5 {[%clk 0:02:21]} 15. Nh5 {[%clk 0:02:38]}  Qf7 {[%clk 0:02:12]} 16. Ng5 {[%clk 0:02:37]}  Qe8 {[%clk 0:02:13]} 17. Nxh7 {[%clk 0:02:26]}  Rg8 {[%clk 0:01:57]} 18. Ng5 {[%clk 0:01:24]}  e4 {[%clk 0:01:52]} 19. Ng3 {[%clk 0:01:18]}  Nf6 {[%clk 0:01:45]} 20. f3 {[%clk 0:01:16]}  Bxg3 {[%clk 0:01:39]} 21. hxg3 {[%clk 0:01:16]}  Nf5 {[%clk 0:01:39]} 22. Bf4 {[%clk 0:01:12]}  Nh5 {[%clk 0:01:35]} 23. fxe4 {[%clk 0:01:07]}  Nfxg3 {[%clk 0:01:33]} 24. Bxg3 {[%clk 0:01:03]}  Nxg3 {[%clk 0:01:34]} 25. Nf7+ {[%clk 0:00:44]}  Kh7 {[%clk 0:01:34]} 26. e5+ {[%clk 0:00:44]}  g6 {[%clk 0:01:09]} 27. Qd2 {[%clk 0:00:31]} 1-0


[Site "https://www.chess.com"]

[Event "Titled Tuesday Blitz November 07 Early 2023"]
[White "Klimkowski, Jan"]
[Black "Yelisieiev, Yevhenii"]
[WhiteFideId "21856222"]
[BlackFideId "14139642"]
[WhiteElo "2791"]
[BlackElo "2658"]
[Result "1-0"]
[Round "5"]
[TimeControl "180+1"]
[Date "2023.11.07"]
[WhiteClock "0:00:09"]
[BlackClock "0:00:02"]
[Board "49"]

1. d4 {[%clk 0:02:46]}  d6 {[%clk 0:03:00]} 2. e4 {[%clk 0:02:40]}  Nf6 {[%clk 0:03:00]} 3. Nc3 {[%clk 0:02:39]}  e5 {[%clk 0:03:01]} 4. Nf3 {[%clk 0:02:37]}  Nbd7 {[%clk 0:03:02]} 5. Bc4 {[%clk 0:02:37]}  Be7 {[%clk 0:03:02]} 6. O-O {[%clk 0:02:37]}  O-O {[%clk 0:03:03]} 7. Re1 {[%clk 0:02:38]}  c6 {[%clk 0:03:04]} 8. a4 {[%clk 0:02:38]}  a5 {[%clk 0:03:04]} 9. h3 {[%clk 0:02:38]}  Nb6 {[%clk 0:03:05]} 10. Ba2 {[%clk 0:02:32]}  Nfd7 {[%clk 0:03:05]} 11. Be3 {[%clk 0:02:30]}  exd4 {[%clk 0:03:06]} 12. Nxd4 {[%clk 0:02:28]}  Nc5 {[%clk 0:03:07]} 13. Bb1 {[%clk 0:02:03]}  Re8 {[%clk 0:02:54]} 14. Nb3 {[%clk 0:01:53]}  Nc4 {[%clk 0:02:36]} 15. Bc1 {[%clk 0:01:52]}  Bf6 {[%clk 0:02:20]} 16. Qe2 {[%clk 0:01:39]}  Be6 {[%clk 0:02:20]} 17. Nxc5 {[%clk 0:01:24]}  dxc5 {[%clk 0:02:19]} 18. Ba2 {[%clk 0:01:25]}  Ne5 {[%clk 0:02:08]} 19. f4 {[%clk 0:01:22]}  Nd7 {[%clk 0:01:47]} 20. e5 {[%clk 0:01:20]}  Bh4 {[%clk 0:01:46]} 21. Rd1 {[%clk 0:01:20]}  Qc7 {[%clk 0:01:40]} 22. Be3 {[%clk 0:01:14]}  Bxa2 {[%clk 0:01:38]} 23. Rxa2 {[%clk 0:01:15]}  Rad8 {[%clk 0:01:33]} 24. Raa1 {[%clk 0:01:14]}  Be7 {[%clk 0:01:28]} 25. Ne4 {[%clk 0:01:14]}  f6 {[%clk 0:01:27]} 26. e6 {[%clk 0:01:10]}  Nf8 {[%clk 0:01:23]} 27. Qc4 {[%clk 0:00:58]}  b6 {[%clk 0:01:18]} 28. Nc3 {[%clk 0:00:44]}  f5 {[%clk 0:01:13]} 29. Rd7 {[%clk 0:00:38]}  Qc8 {[%clk 0:00:59]} 30. g4 {[%clk 0:00:34]}  Kh8 {[%clk 0:00:37]} 31. Rxd8 {[%clk 0:00:33]}  Qxd8 {[%clk 0:00:29]} 32. Rd1 {[%clk 0:00:32]}  Bd6 {[%clk 0:00:26]} 33. gxf5 {[%clk 0:00:31]}  Qe7 {[%clk 0:00:24]} 34. Ne4 {[%clk 0:00:31]}  Bc7 {[%clk 0:00:22]} 35. Qc3 {[%clk 0:00:24]}  Rd8 {[%clk 0:00:18]} 36. Rxd8 {[%clk 0:00:24]}  Qxd8 {[%clk 0:00:19]} 37. Kg2 {[%clk 0:00:22]}  Qd5 {[%clk 0:00:18]} 38. Qd3 {[%clk 0:00:16]}  Bd8 {[%clk 0:00:10]} 39. Qxd5 {[%clk 0:00:15]}  cxd5 {[%clk 0:00:10]} 40. Ng5 {[%clk 0:00:16]}  Kg8 {[%clk 0:00:07]} 41. Nf7 {[%clk 0:00:15]}  Bf6 {[%clk 0:00:08]} 42. b3 {[%clk 0:00:15]}  g6 {[%clk 0:00:08]} 43. Nd6 {[%clk 0:00:08]}  gxf5 {[%clk 0:00:07]} 44. Nc8 {[%clk 0:00:08]}  Nxe6 {[%clk 0:00:06]} 45. Nxb6 {[%clk 0:00:09]}  d4 {[%clk 0:00:06]} 46. Bd2 {[%clk 0:00:09]}  Kf7 {[%clk 0:00:06]} 47. Nc4 {[%clk 0:00:09]}  Bd8 {[%clk 0:00:05]} 48. Kf3 {[%clk 0:00:09]}  Bc7 {[%clk 0:00:06]} 49. Nxa5 {[%clk 0:00:09]}  Bxa5 {[%clk 0:00:03]} 50. Bxa5 {[%clk 0:00:09]}  Ke7 {[%clk 0:00:03]} 51. Bd2 {[%clk 0:00:06]}  Kd6 {[%clk 0:00:04]} 52. Ke2 {[%clk 0:00:06]}  Kd5 {[%clk 0:00:04]} 53. Kd3 {[%clk 0:00:07]}  Nd8 {[%clk 0:00:03]} 54. a5 {[%clk 0:00:06]}  Nc6 {[%clk 0:00:04]} 55. a6 {[%clk 0:00:07]}  Kd6 {[%clk 0:00:03]} 56. Kc4 {[%clk 0:00:07]}  Kc7 {[%clk 0:00:04]} 57. Kxc5 {[%clk 0:00:07]}  Nd8 {[%clk 0:00:03]} 58. b4 {[%clk 0:00:07]}  Ne6+ {[%clk 0:00:03]} 59. Kd5 {[%clk 0:00:08]}  Nd8 {[%clk 0:00:04]} 60. b5 {[%clk 0:00:08]}  Kb6 {[%clk 0:00:04]} 61. Ba5+ {[%clk 0:00:07]}  Kxa5 {[%clk 0:00:03]} 62. a7 {[%clk 0:00:08]}  Kxb5 {[%clk 0:00:04]} 63. a8=Q {[%clk 0:00:08]}  d3 {[%clk 0:00:04]} 64. cxd3 {[%clk 0:00:08]}  Nc6 {[%clk 0:00:02]} 65. Qxc6+ {[%clk 0:00:09]} 1-0


[Site "https://www.chess.com"]

[Event "Titled Tuesday Blitz November 07 Early 2023"]
[White "Mekhitarian, Krikor Sevag"]
[Black "Volkov, Maksim"]
[WhiteFideId "2107660"]
[BlackFideId "54123070"]
[WhiteElo "2785"]
[BlackElo "2646"]
[Result "0-1"]
[Round "5"]
[TimeControl "180+1"]
[Date "2023.11.07"]
[WhiteClock "0:00:00"]
[BlackClock "0:00:14"]
[Board "51"]

1. Nf3 {[%clk 0:02:59]}  d5 {[%clk 0:02:59]} 2. c4 {[%clk 0:02:55]}  e6 {[%clk 0:02:58]} 3. d4 {[%clk 0:02:53]}  Nf6 {[%clk 0:02:57]} 4. cxd5 {[%clk 0:02:52]}  exd5 {[%clk 0:02:57]} 5. Nc3 {[%clk 0:02:53]}  c6 {[%clk 0:02:57]} 6. Bf4 {[%clk 0:02:53]}  Bf5 {[%clk 0:02:57]} 7. e3 {[%clk 0:02:49]}  Be7 {[%clk 0:02:57]} 8. h3 {[%clk 0:02:48]}  Nbd7 {[%clk 0:02:52]} 9. g4 {[%clk 0:02:43]}  Bg6 {[%clk 0:02:38]} 10. Bd3 {[%clk 0:02:33]}  Bxd3 {[%clk 0:02:33]} 11. Qxd3 {[%clk 0:02:34]}  O-O {[%clk 0:02:29]} 12. Kf1 {[%clk 0:02:29]}  Re8 {[%clk 0:02:22]} 13. Rd1 {[%clk 0:02:21]}  Nf8 {[%clk 0:02:20]} 14. Rg1 {[%clk 0:02:05]}  Bd6 {[%clk 0:02:12]} 15. Bxd6 {[%clk 0:01:48]}  Qxd6 {[%clk 0:02:12]} 16. Ne5 {[%clk 0:01:48]}  N6d7 {[%clk 0:02:07]} 17. Nf3 {[%clk 0:01:38]}  Qe7 {[%clk 0:01:45]} 18. g5 {[%clk 0:01:32]}  Qe6 {[%clk 0:01:42]} 19. Rg3 {[%clk 0:01:31]}  Qg6 {[%clk 0:01:35]} 20. h4 {[%clk 0:01:20]}  Re7 {[%clk 0:01:22]} 21. Qxg6 {[%clk 0:01:09]}  hxg6 {[%clk 0:01:12]} 22. Ne2 {[%clk 0:01:07]}  Nb6 {[%clk 0:01:06]} 23. b3 {[%clk 0:01:07]}  Nc8 {[%clk 0:01:05]} 24. Nf4 {[%clk 0:00:54]}  Nd6 {[%clk 0:01:06]} 25. Nd3 {[%clk 0:00:55]}  Ne4 {[%clk 0:01:03]} 26. Rh3 {[%clk 0:00:51]}  f6 {[%clk 0:00:58]} 27. Rc1 {[%clk 0:00:48]}  Ne6 {[%clk 0:00:56]} 28. Kg2 {[%clk 0:00:25]}  Rf8 {[%clk 0:00:48]} 29. Rch1 {[%clk 0:00:18]}  Kh7 {[%clk 0:00:36]} 30. gxf6 {[%clk 0:00:15]}  gxf6 {[%clk 0:00:36]} 31. h5 {[%clk 0:00:16]}  g5 {[%clk 0:00:37]} 32. R3h2 {[%clk 0:00:09]}  Kh6 {[%clk 0:00:35]} 33. Nfe1 {[%clk 0:00:07]}  Ng7 {[%clk 0:00:31]} 34. Nc2 {[%clk 0:00:07]}  Nf5 {[%clk 0:00:30]} 35. Kf1 {[%clk 0:00:06]}  Rfe8 {[%clk 0:00:26]} 36. Nce1 {[%clk 0:00:04]}  Neg3+ {[%clk 0:00:14]} 37. fxg3 {[%clk 0:00:03]}  Nxg3+ {[%clk 0:00:15]} 38. Kf2 {[%clk 0:00:03]}  Nxh1+ {[%clk 0:00:15]} 39. Rxh1 {[%clk 0:00:03]}  Rxe3 {[%clk 0:00:16]} 40. Kf1 {[%clk 0:00:02]}  Re2 {[%clk 0:00:15]} 41. Rh3 {[%clk 0:00:02]}  Rxa2 {[%clk 0:00:15]} 42. Rf3 {[%clk 0:00:03]}  Re6 {[%clk 0:00:14]} 43. Nc5 {[%clk 0:00:00]}  Re7 {[%clk 0:00:14]} 0-1


[Site "https://www.chess.com"]

[Event "Titled Tuesday Blitz November 07 Early 2023"]
[White "Shapiro, Viktor"]
[Black "Korchmar, Vasiliy"]
[WhiteFideId "4175700"]
[BlackFideId "24131750"]
[WhiteElo "2596"]
[BlackElo "2745"]
[Result "0-1"]
[Round "5"]
[TimeControl "180+1"]
[Date "2023.11.07"]
[WhiteClock "0:00:06"]
[BlackClock "0:00:06"]
[Board "55"]

1. Nf3 {[%clk 0:03:00]}  d5 {[%clk 0:02:59]} 2. c4 {[%clk 0:03:01]}  e6 {[%clk 0:02:58]} 3. d4 {[%clk 0:03:01]}  Nf6 {[%clk 0:02:58]} 4. Nc3 {[%clk 0:03:01]}  dxc4 {[%clk 0:02:58]} 5. e3 {[%clk 0:03:01]}  a6 {[%clk 0:02:56]} 6. a4 {[%clk 0:02:58]}  b6 {[%clk 0:02:56]} 7. Bxc4 {[%clk 0:02:58]}  Bb7 {[%clk 0:02:56]} 8. O-O {[%clk 0:02:59]}  Bb4 {[%clk 0:02:57]} 9. Ne5 {[%clk 0:02:56]}  O-O {[%clk 0:02:56]} 10. Qb3 {[%clk 0:02:49]}  Bd6 {[%clk 0:02:30]} 11. f4 {[%clk 0:02:39]}  c5 {[%clk 0:02:28]} 12. Rd1 {[%clk 0:02:15]}  cxd4 {[%clk 0:02:17]} 13. exd4 {[%clk 0:02:15]}  Nc6 {[%clk 0:02:12]} 14. Be3 {[%clk 0:02:11]}  Na5 {[%clk 0:02:12]} 15. Qa2 {[%clk 0:02:11]}  Nxc4 {[%clk 0:02:11]} 16. Nxc4 {[%clk 0:02:05]}  Ng4 {[%clk 0:01:57]} 17. g3 {[%clk 0:01:35]}  Nxe3 {[%clk 0:01:43]} 18. Nxe3 {[%clk 0:01:34]}  Qd7 {[%clk 0:01:36]} 19. Qb3 {[%clk 0:01:25]}  Qc6 {[%clk 0:01:22]} 20. d5 {[%clk 0:01:23]}  exd5 {[%clk 0:01:21]} 21. Ncxd5 {[%clk 0:01:22]}  Bc5 {[%clk 0:01:19]} 22. Rac1 {[%clk 0:01:19]}  Rae8 {[%clk 0:01:00]} 23. Kf1 {[%clk 0:01:01]}  Qh6 {[%clk 0:00:56]} 24. h4 {[%clk 0:00:57]}  Bc6 {[%clk 0:00:42]} 25. Rc3 {[%clk 0:00:48]}  Qg6 {[%clk 0:00:40]} 26. Kf2 {[%clk 0:00:42]}  Re4 {[%clk 0:00:37]} 27. a5 {[%clk 0:00:39]}  Ba4 {[%clk 0:00:35]} 28. Qxa4 {[%clk 0:00:33]}  Rxa4 {[%clk 0:00:35]} 29. Rxc5 {[%clk 0:00:34]}  bxc5 {[%clk 0:00:26]} 30. Ne7+ {[%clk 0:00:33]}  Kh8 {[%clk 0:00:26]} 31. Nxg6+ {[%clk 0:00:34]}  hxg6 {[%clk 0:00:27]} 32. Rc1 {[%clk 0:00:27]}  Rxa5 {[%clk 0:00:26]} 33. Nc4 {[%clk 0:00:27]}  Ra2 {[%clk 0:00:25]} 34. Ke3 {[%clk 0:00:26]}  Rb8 {[%clk 0:00:22]} 35. Ke4 {[%clk 0:00:26]}  Kh7 {[%clk 0:00:13]} 36. Kd5 {[%clk 0:00:27]}  Rb3 {[%clk 0:00:11]} 37. Rg1 {[%clk 0:00:21]}  Rb5 {[%clk 0:00:06]} 38. g4 {[%clk 0:00:20]}  a5 {[%clk 0:00:06]} 39. h5 {[%clk 0:00:19]}  gxh5 {[%clk 0:00:06]} 40. gxh5 {[%clk 0:00:20]}  a4 {[%clk 0:00:07]} 41. Rg3 {[%clk 0:00:19]}  Rbxb2 {[%clk 0:00:04]} 42. Nxb2 {[%clk 0:00:19]}  Rxb2 {[%clk 0:00:05]} 43. Ra3 {[%clk 0:00:19]}  Rh2 {[%clk 0:00:04]} 44. Rxa4 {[%clk 0:00:18]}  Rxh5+ {[%clk 0:00:04]} 45. Ke4 {[%clk 0:00:18]}  g6 {[%clk 0:00:04]} 46. Ra7 {[%clk 0:00:18]}  Rf5 {[%clk 0:00:04]} 47. Rc7 {[%clk 0:00:18]}  Kg7 {[%clk 0:00:04]} 48. Ke3 {[%clk 0:00:17]}  Rh5 {[%clk 0:00:04]} 49. Ke4 {[%clk 0:00:15]}  Kf6 {[%clk 0:00:04]} 50. Rc6+ {[%clk 0:00:10]}  Ke7 {[%clk 0:00:04]} 51. Rc7+ {[%clk 0:00:10]}  Ke6 {[%clk 0:00:05]} 52. Rc6+ {[%clk 0:00:10]}  Kd7 {[%clk 0:00:05]} 53. Rf6 {[%clk 0:00:10]}  Rh7 {[%clk 0:00:03]} 54. Kd5 {[%clk 0:00:10]}  Rh5+ {[%clk 0:00:03]} 55. Ke4 {[%clk 0:00:09]}  Ke7 {[%clk 0:00:03]} 56. Rc6 {[%clk 0:00:09]}  f6 {[%clk 0:00:04]} 57. Rc7+ {[%clk 0:00:08]}  Kd6 {[%clk 0:00:04]} 58. Rg7 {[%clk 0:00:09]}  g5 {[%clk 0:00:03]} 59. f5 {[%clk 0:00:09]}  Rh4+ {[%clk 0:00:03]} 60. Ke3 {[%clk 0:00:10]}  Rf4 {[%clk 0:00:03]} 61. Ra7 {[%clk 0:00:08]}  Rxf5 {[%clk 0:00:04]} 62. Ra6+ {[%clk 0:00:09]}  Kd5 {[%clk 0:00:04]} 63. Kd3 {[%clk 0:00:08]}  Rf4 {[%clk 0:00:05]} 64. Ke3 {[%clk 0:00:08]}  c4 {[%clk 0:00:05]} 65. Ra5+ {[%clk 0:00:08]}  Ke6 {[%clk 0:00:05]} 66. Ra6+ {[%clk 0:00:08]}  Kf5 {[%clk 0:00:05]} 67. Ra5+ {[%clk 0:00:09]}  Kg6 {[%clk 0:00:05]} 68. Rc5 {[%clk 0:00:09]}  Rh4 {[%clk 0:00:06]} 69. Rc6 {[%clk 0:00:06]}  c3 {[%clk 0:00:06]} 0-1


[Site "https://www.chess.com"]

[Event "Titled Tuesday Blitz November 07 Early 2023"]
[White "Gavrilov, Maxim"]
[Black "Smirnov, Pavel"]
[WhiteFideId "24271454"]
[BlackFideId "4123425"]
[WhiteElo "2560"]
[BlackElo "2726"]
[Result "0-1"]
[Round "5"]
[TimeControl "180+1"]
[Date "2023.11.07"]
[WhiteClock "0:00:04"]
[BlackClock "0:00:52"]
[Board "58"]

1. d4 {[%clk 0:02:56]}  Nf6 {[%clk 0:02:59]} 2. c4 {[%clk 0:02:55]}  e6 {[%clk 0:03:00]} 3. Nc3 {[%clk 0:02:55]}  Bb4 {[%clk 0:03:00]} 4. Nf3 {[%clk 0:02:55]}  O-O {[%clk 0:03:00]} 5. Bg5 {[%clk 0:02:55]}  c5 {[%clk 0:03:00]} 6. Rc1 {[%clk 0:02:53]}  cxd4 {[%clk 0:03:00]} 7. Nxd4 {[%clk 0:02:53]}  h6 {[%clk 0:02:58]} 8. Bh4 {[%clk 0:02:53]}  d5 {[%clk 0:02:57]} 9. cxd5 {[%clk 0:02:46]}  g5 {[%clk 0:02:54]} 10. Bg3 {[%clk 0:02:44]}  Qxd5 {[%clk 0:02:55]} 11. e3 {[%clk 0:02:44]}  Qxa2 {[%clk 0:02:52]} 12. Bd3 {[%clk 0:02:44]}  Qxb2 {[%clk 0:02:51]} 13. O-O {[%clk 0:02:44]}  Bxc3 {[%clk 0:02:52]} 14. Rc2 {[%clk 0:02:40]}  Qb4 {[%clk 0:02:51]} 15. Nb5 {[%clk 0:02:40]}  e5 {[%clk 0:02:50]} 16. Rxc3 {[%clk 0:02:36]}  Nc6 {[%clk 0:02:50]} 17. f4 {[%clk 0:02:25]}  Bg4 {[%clk 0:02:47]} 18. Qc1 {[%clk 0:02:11]}  Rad8 {[%clk 0:02:15]} 19. fxg5 {[%clk 0:01:17]}  Rxd3 {[%clk 0:02:12]} 20. Rxd3 {[%clk 0:01:08]}  Qxb5 {[%clk 0:02:13]} 21. Rd6 {[%clk 0:00:54]}  Ne4 {[%clk 0:02:09]} 22. Rxh6 {[%clk 0:00:49]}  Kg7 {[%clk 0:01:55]} 23. Qc2 {[%clk 0:00:46]}  Qd5 {[%clk 0:01:49]} 24. h3 {[%clk 0:00:36]}  Nxg5 {[%clk 0:01:30]} 25. Rh4 {[%clk 0:00:22]}  Be6 {[%clk 0:01:29]} 26. Qe2 {[%clk 0:00:19]}  Rh8 {[%clk 0:01:11]} 27. Rxh8 {[%clk 0:00:18]}  Kxh8 {[%clk 0:01:11]} 28. Qh5+ {[%clk 0:00:18]}  Nh7 {[%clk 0:01:10]} 29. Bh4 {[%clk 0:00:19]}  Qe4 {[%clk 0:01:02]} 30. Rd1 {[%clk 0:00:12]}  Qg6 {[%clk 0:01:01]} 31. Qf3 {[%clk 0:00:11]}  Kg7 {[%clk 0:00:59]} 32. e4 {[%clk 0:00:11]}  Nd4 {[%clk 0:00:54]} 33. Qc3 {[%clk 0:00:04]}  Ne2+ {[%clk 0:00:52]} 0-1


[Site "https://www.chess.com"]